[Event "16th Delhi GM Open 2018"]
[Site "Delhi"]
[Date "2018.01.09"]
[Round "1"]
[White "Soham, Kamotra"]
[Black "Karthikeyan, Pandiyan"]
[Result "0-1"]
[ECO "A15"]
[WhiteElo "2013"]
[BlackElo "1422"]
[PlyCount "58"]
[EventDate "2018.??.??"]
[EventType "swiss"]
[EventCountry "IND"]
[SourceTitle "Delhi"]
[TimeControl "5400+30"]
[WhiteClock "0:58:30"]
[BlackClock "0:52:05"]

1. c4 Nf6 2. g3 e5 3. Bg2 c6 4. d4 {[%emt 0:14:07]} e4 {[%emt 0:09:56]} 5. Nc3 {[%emt 0:01:01]} Bb4 {[%emt 0:00:03]} 6. Qb3 {[%emt 0:01:32]} Bxc3+ {[%emt 0:05:19]} 7. Qxc3 {[%emt 0:00:16]} O-O {[%emt 0:00:30]} 8. Bg5 {[%emt 0:03:02]} Re8 {[%emt 0:01:23]} 9. Nh3 {[%emt 0:00:58]} h6 {[%emt 0:00:49]} 10. Bxf6 Qxf6 11. e3 {[%emt 0:01:29]} d6 {[%emt 0:00:48]} 12. Nf4 {[%emt 0:00:38]} Bg4 {[%emt 0:01:40]} 13. h3 {[%emt 0:01:10]} Bf3 {[%emt 0:00:09]} 14. Bxf3 {[%emt 0:00:10]} exf3 {[%emt 0:00:03]} 15. h4 {[%emt 0:03:54]} Nd7 {[%emt 0:06:32]} 16. O-O-O {[%emt 0:01:25]} Qf5 {[%emt 0:06:29]} 17. Qd3 {[%emt 0:14:18]} Qa5 {[%emt 0:04:42]} 18. Kb1 {[%emt 0:00:09]} Nf6 {[%emt 0:00:13]} 19. Rc1 {[%emt 0:03:16]} Ne4 {[%emt 0:02:24]} 20. Rc2 Qf5 21. Kc1 g5 22. hxg5 hxg5 23. Nh5 Re6 24. Qf1 Rh6 25. Qh3 Qxh3 26. Rxh3 f5 27. Rh1 Kf7 28. g4 fxg4 29. Ng3 Rxh1+ 0-1

[Event "16th Delhi GM Open 2018"]
[Site "Delhi"]
[Date "2018.01.10"]
[Round "3"]
[White "Arjun Kalyan"]
[Black "Pranav Anand"]
[Result "1-0"]
[ECO "C96"]
[WhiteElo "2407"]
[BlackElo "2072"]
[Annotator "ChessBase"]
[PlyCount "147"]
[EventDate "2018.??.??"]
[EventType "swiss"]
[EventCountry "IND"]
[TimeControl "5400+30"]

1. e4 {[%emt 0:00:00]} e5 {[%emt 0:00:11]} 2. Nf3 {[%emt 0:00:00]} Nc6 {[%emt 0:00:03]} 3. Bb5 {[%emt 0:00:00]} a6 {[%emt 0:00:03]} 4. Ba4 {[%emt 0:00:00]} Nf6 {[%emt 0:00:03]} 5. O-O {[%emt 0:00:00]} Be7 {[%emt 0:00:02]} 6. Re1 {[%emt 0:00:06]} b5 {[%emt 0:00:10]} 7. Bb3 {[%emt 0:00:08]} d6 {[%emt 0:00:04]} 8. c3 {[%emt 0:00:06]} O-O {[%emt 0:00:04]} 9. h3 {[%emt 0:00:10]} Na5 {[%emt 0:00:10]} 10. Bc2 {[%emt 0:00:38]} c5 {[%emt 0:00:04]} 11. d4 {[%emt 0:00:05]} Nd7 {[%emt 0:00:08]} 12. Nbd2 {[%emt 0:01:43]} exd4 {[%emt 0:00:14]} 13. cxd4 {[%emt 0:00:19]} Nc6 {[%emt 0:00:05]} 14. d5 {[%emt 0:00:50]} Nce5 {[%emt 0:00:05]} 15. a4 {[%emt 0:01:11]} Bb7 {[%emt 0:00:04]} 16. Qe2 {[%emt 0:03:11]} Qb6 {[%emt 0:02:13]} 17. axb5 {[%emt 0:05:41]} axb5 {[%emt 0:00:55]} 18. Rxa8 {[%emt 0:00:09]} Rxa8 {[%emt 0:00:15]} 19. Nxe5 {[%emt 0:01:13]} Nxe5 {[%emt 0:00:28]} 20. f4 {[%emt 0:01:50]} Ng6 {[%emt 0:00:18]} 21. Nf3 {[%emt 0:01:55]} Ne5 {[%emt 0:00:42]} 22. Nd2 {[%emt 0:00:00]} Ng6 {[%emt 0:00:18]} 23. Nf3 {[%emt 0:01:00]} Nh4 {[%emt 0:10:55]} 24. Be3 {[%emt 0:02:41]} Ng6 {[%emt 0:00:00]} 25. Bc1 {[%emt 0:00:00]} Nh4 {[%emt 0:01:00]} 26. Be3 {[%emt 0:01:00]} Ng6 {[%emt 0:00:00]} 27. Bc1 {[%emt 0:00:00]} Nh4 {[%emt 0:01:00]} 28. Be3 {[%emt 0:01:00]} Ra2 {[%emt 0:12:35]} 29. Rb1 {[%emt 0:02:38]} Nxf3+ {[%emt 0:01:15]} 30. Qxf3 {[%emt 0:00:05]} Qa6 {[%emt 0:02:05]} 31. e5 {[%emt 0:04:19]} Qa8 {[%emt 0:06:38]} 32. Be4 {[%emt 0:09:45]} Ra1 {[%emt 0:00:00]} 33. Bc2 {[%emt 0:00:00]} Ra2 {[%emt 0:01:00]} 34. Be4 {[%emt 0:01:00]} Ra1 {[%emt 0:02:13]} 35. Bc2 {[%emt 0:00:00]} Ra2 {[%emt 0:00:00]} 36. Be4 {[%emt 0:01:00]} Ra1 {[%emt 0:01:00]} 37. Rxa1 {[%emt 0:11:22]} Qxa1+ {[%emt 0:16:02]} 38. Kh2 {[%emt 0:00:00]} g6 {[%emt 0:00:30]} 39. Qe2 {[%emt 0:13:34]} Qa4 {[%emt 0:03:05]} 40. Bf2 {[%emt 0:01:03]} Qa1 {[%emt 0:00:00]} 41. Be3 {[%emt 0:00:00]} Qa4 {[%emt 0:01:00]} 42. Bf2 {[%emt 0:01:00]} Qb3 {[%emt 0:00:00]} 43. Be3 {[%emt 0:00:00]} Qa4 {[%emt 0:01:00]} 44. Bf2 {[%emt 0:01:00]} Qb3 {[%emt 0:08:50]} 45. Qd2 {[%emt 0:02:19]} Qc4 {[%emt 0:00:24]} 46. Bf3 {[%emt 0:00:32]} Bf8 {[%emt 0:03:16]} 47. Bg3 {[%emt 0:03:48]} Be7 {[%emt 0:00:00]} 48. Bf2 {[%emt 0:00:00]} Bf8 {[%emt 0:01:00]} 49. Bg3 {[%emt 0:01:00]} Bc8 {[%emt 0:07:01]} 50. Be2 {[%emt 0:04:51]} Qa4 {[%emt 0:01:57]} 51. Qe3 {[%emt 0:00:12]} Bf5 {[%emt 0:05:08]} 52. Bh4 {[%emt 0:08:52]} Bc8 {[%emt 0:00:00]} 53. Bg3 {[%emt 0:00:00]} Bf5 {[%emt 0:01:00]} 54. Bh4 {[%emt 0:00:00]} Bc8 {[%emt 0:00:00]} 55. Bg3 {[%emt 0:00:00]} Bf5 {[%emt 0:01:00]} 56. Bh4 {[%emt 0:02:00]} Bc8 {[%emt 0:00:00]} 57. Bg3 {[%emt 0:00:00]} Bf5 {[%emt 0:01:00]} 58. Bh4 {[%emt 0:01:00]} Bc8 {[%emt 0:00:00]} 59. Bg3 {[%emt 0:00:00]} Bf5 {[%emt 0:01:00]} 60. Bh4 {[%emt 0:01:00]} Bc8 {[%emt 0:00:00]} 61. Bg3 {[%emt 0:00:00]} Bf5 {[%emt 0:01:00]} 62. Bh4 {[%emt 0:01:00]} Bc8 {[%emt 0:00:00]} 63. Bg3 {[%emt 0:00:00]} Bf5 {[%emt 0:01:00]} 64. Bh4 {[%emt 0:01:00]} Bc8 {[%emt 0:00:00]} 65. Bg3 {[%emt 0:00:00]} Bf5 {[%emt 0:01:00]} 66. Bh4 {[%emt 0:01:00]} Bc8 {[%emt 0:00:00]} 67. Bg3 {[%emt 0:00:00]} Bf5 {[%emt 0:01:00]} 68. Bh4 {[%emt 0:01:00]} Bc8 {[%emt 0:00:00]} 69. Bg3 {[%emt 0:00:00]} Bf5 {[%emt 0:01:00]} 70. Bh4 {[%emt 0:01:00]} Bc8 {[%emt 0:00:00]} 71. Bg3 {[%emt 0:00:00]} Bf5 {[%emt 0:01:00]} 72. Bh4 {[%emt 0:01:00]} Bc8 {[%emt 0:00:00]} 73. Bg3 {[%emt 0:00:00]} Bf5 {[%emt 0:01:00]} 74. Bh4 {[%emt 0:01:00]} 1-0

[Event "16th Delhi GM Open 2018"]
[Site "Delhi"]
[Date "2018.01.10"]
[Round "3"]
[White "Erigaisi Arjun"]
[Black "Nguyen, Phuoc Tam"]
[Result "1-0"]
[ECO "E73"]
[WhiteElo "2386"]
[BlackElo "2068"]
[Annotator "ChessBase"]
[PlyCount "87"]
[EventDate "2018.??.??"]
[EventType "swiss"]
[EventCountry "IND"]
[TimeControl "5400+30"]

1. d4 Nf6 2. c4 g6 3. Nc3 Bg7 4. e4 d6 5. Be2 O-O 6. Bg5 Nbd7 7. Qd2 c5 8. d5 b5 9. cxb5 a6 10. Nf3 axb5 11. Bxb5 Ba6 12. Bxa6 Rxa6 13. O-O Qc7 14. h3 Rb8 15. Rab1 Nb6 16. b3 Nc8 17. Rfe1 Nd7 18. a4 Ne5 19. Nxe5 Bxe5 20. Bf4 Bxf4 21. Qxf4 Rb4 22. Qe3 Nb6 23. e5 Ra8 24. Nb5 Qd7 25. Qg5 Rf8 26. Nc3 Rd4 27. exd6 Qxd6 28. Ne4 Rxd5 29. Qh6 Qe5 30. Nxc5 Qf5 31. Ne4 Nd7 32. b4 Rb8 33. Qe3 Ne5 34. Nc3 Rd3 35. Qxe5 Qxe5 36. Rxe5 Rxc3 37. b5 Ra3 38. Rb4 Kf8 39. b6 Ke8 40. Ra5 Kd7 41. Ra7+ Kd6 42. a5 Ke5 43. Rb2 h5 44. Rxe7+ 1-0